bitfinex/quotes_ETHUSD_20220202
["timestamp","ask_amount","ask_price","bid_price","bid_amount"]
[1643794509411,1.52891269,2765.8,2765.1,3.0873]
[1643794509609,0.34983194,2765.5,2765.0,0.90395]
[1643794509810,1.25381864,2765.5,2765.0,0.90395]
[1643794510011,0.904,2765.4,2765.0,0.90395]
[1643794511613,1.55381864,2765.5,2764.6,4.61253]
[1643794511614,1.85302698,2765.3,2764.8,0.90403]
[1643794511816,1.85302698,2765.3,2764.4,4.20303012]
[1643794511817,0.9041372,2765.1,2764.4,4.20303012]
[1643794512017,2.20618556,2765.0,2764.8,1.0]
[1643794512306,4.31456086,2765.0,2764.4,1.3]
[1643794512705,0.90419,2764.7,2764.4,1.3]
[1643794512902,0.90419,2764.7,2764.3,8.15319749]
[1643794512903,2.74772114,2764.7,2764.3,8.15319749]
[1643794513104,2.74772114,2764.7,2764.3,7.47]
[1643794513105,1.20419,2764.7,2764.3,7.47]
[1643794513410,1.89717891,2764.6,2764.3,7.47]
[1643794513603,1.20419,2764.7,2764.3,7.47]
[1643794514201,0.90429,2764.6,2764.3,8.39596697]
[1643794514404,1.8085557,2764.6,2764.3,8.39596697]
[1643794514602,0.3,2764.5,2764.3,8.39596697]
[1643794514802,0.3,2764.5,2764.3,7.47]
[1643794515005,1.8959429,2764.4,2764.3,7.47]
[1643794515805,3.42943625,2764.4,2763.6,7.47]
[1643794516019,0.35982991,2763.9,2763.6,7.47]
[1643794516212,1.92109285,2763.8,2763.6,7.47]
[1643794517111,1.84686346,2763.8,2763.6,7.47]
[1643794517515,0.65982991,2763.9,2763.6,7.47]
[1643794517915,1.56436991,2763.9,2763.6,7.47]
[1643794518717,1.20454,2763.9,2763.6,7.47]
[1643794519761,1.20454,2763.9,2763.7,0.43532621]
[1643794519961,3.184338,2764.2,2763.8,0.90479518]
[1643794520170,0.1809,2764.2,2763.8,0.90479518]
[1643794520364,0.1807,2764.5,2763.8,0.90479518]
[1643794520564,0.1807,2764.6,2763.8,0.90479518]
[1643794520762,1.86269677,2765.3,2763.8,4.62539518]
[1643794520763,0.1807,2765.2,2763.8,4.62539518]
[1643794521173,0.42385184,2765.1,2764.5,1.24557087]
[1643794521364,0.1807,2765.0,2764.6,0.90411]
[1643794521962,0.90413,2765.1,2764.6,0.90411]
[1643794522163,0.1807,2765.0,2764.6,0.90411]
[1643794523611,1.20413,2765.1,2764.6,0.90411]
[1643794523612,1.63740843,2765.1,2764.6,0.90411]
[1643794524008,1.33740843,2765.1,2764.6,1.20411]
[1643794524210,0.1807,2765.3,2764.6,1.20411]
[1643794524812,0.1807,2765.3,2764.6,2.20411]
[1643794525112,0.1807,2765.5,2764.8,0.90399]
[1643794525311,0.59316211,2765.5,2764.8,1.20399]
[1643794525510,0.59162306,2765.5,2764.8,1.20399]
[1643794525710,0.89162306,2765.5,2764.8,1.20399]
[1643794525912,2.74644974,2765.5,2764.8,1.20399]
[1643794526113,0.89162306,2765.5,2764.8,1.20399]
[1643794526511,2.76934148,2765.5,2764.8,1.20399]
[1643794527763,0.47916095,2765.5,2764.8,1.20399]
[1643794528362,2.3387449,2765.5,2764.8,1.20399]
[1643794529264,0.32306041,2765.3,2764.8,0.90399]
[1643794529464,0.62306041,2765.3,2764.8,0.90399]
[1643794529863,0.62306041,2765.3,2764.6,1.0]
[1643794530063,0.80376041,2765.3,2764.4,1.0]
[1643794530263,0.80376041,2765.3,2764.3,1.80823]
[1643794530264,0.62306041,2765.3,2764.3,3.10823]
[1643794530665,0.9041893,2765.2,2764.6,0.73635783]
[1643794531107,0.9041893,2765.2,2764.6,1.03635783]
[1643794531307,1.90830449,2765.2,2764.6,1.03635783]
[1643794532912,1.90830449,2765.2,2764.6,1.4319429]
[1643794533111,1.52718041,2765.3,2764.7,0.90408]
[1643794534771,0.3,2765.3,2764.7,0.90408]
[1643794535269,2.33610591,2765.5,2764.7,0.90408]
[1643794535872,0.36618536,2765.3,2764.7,1.23556269]
[1643794536373,0.3,2765.3,2764.7,2.23556269]
[1643794536572,2.33610591,2765.5,2764.7,2.23556269]
[1643794536772,1.52940486,2765.4,2764.7,2.23556269]
[1643794536977,0.90406,2765.4,2764.7,2.23556269]
[1643794537378,0.90406,2765.4,2764.7,1.23556269]
[1643794537578,1.32091988,2765.4,2764.7,1.23556269]
[1643794538406,1.32091988,2765.4,2764.7,0.90408]
[1643794539515,2.0,2765.3,2764.7,0.90408]
[1643794539708,2.0,2765.3,2764.6,1.3]
[1643794539709,1.52946109,2765.2,2764.6,1.3]
[1643794539911,1.20409,2765.3,2764.6,0.3]
[1643794540107,1.52946497,2765.2,2764.6,1.3]
[1643794540310,1.20409,2765.3,2764.6,0.3]
[1643794540510,1.52946159,2765.2,2764.6,1.3]
[1643794540709,1.52946159,2765.2,2764.6,0.3]
[1643794540710,0.37866125,2764.9,2764.6,0.3]
[1643794540910,1.20409,2765.3,2764.6,0.3]
[1643794540911,0.90416,2765.0,2764.6,0.3]
[1643794541108,1.20416,2765.0,2764.6,1.3]
[1643794542162,1.20416,2765.0,2764.6,0.3]
[1643794542365,1.58833733,2765.0,2764.6,1.3]
[1643794543766,1.58833733,2765.0,2764.6,0.3]
[1643794543970,2.0,2764.9,2764.2,7.47]
[1643794544173,1.58833733,2765.0,2764.2,7.47]
[1643794544174,1.52967535,2764.8,2764.2,7.47]
[1643794544368,1.82967535,2764.8,2764.2,7.47]
[1643794544568,1.52967535,2764.7,2763.6,13.24881]
[1643794544969,0.34089615,2764.2,2763.6,14.37412977]
[1643794545169,0.34089615,2764.2,2763.6,8.18008019]
[1643794545370,1.20448,2764.2,2763.6,8.18008019]
[1643794546008,1.20448,2764.2,2763.7,0.9044]
[1643794546214,1.20448,2764.2,2763.7,2.2044]
[1643794546515,0.3,2764.2,2764.0,0.41771398]
[1643794546710,0.3,2764.4,2764.0,0.41771398]
[1643794546914,0.3,2764.4,2764.2,0.77354894]
[1643794547112,0.3,2764.6,2764.2,0.77354894]
[1643794547321,0.3,2764.7,2764.2,1.07354894]
[1643794547516,0.90425,2764.7,2764.2,1.07354894]
[1643794547714,1.20425,2764.7,2764.2,1.07354894]
[1643794548417,1.20425,2764.7,2764.3,0.90421]
[1643794548814,0.3,2764.7,2764.3,0.90421]
[1643794549015,0.1807,2764.9,2764.3,0.90421]
[1643794549660,0.17945387,2764.9,2764.5,0.39749391]
[1643794549864,0.1807,2765.1,2764.5,0.39749391]
[1643794550061,0.1807,2765.1,2764.5,1.30163391]
[1643794550261,0.1807,2765.5,2764.6,0.3]
[1643794550459,1.5293508,2765.4,2764.6,0.3]
[1643794550665,1.5293508,2765.4,2765.0,1.8082759]
[1643794550858,2.41263616,2765.6,2765.0,2.24241241]
[1643794550859,1.7100508,2765.3,2765.0,2.24241241]
[1643794551059,0.1807,2765.5,2765.1,0.3]
[1643794551259,1.52935676,2765.4,2765.1,0.3]
[1643794551462,1.52935676,2765.3,2765.1,1.3]
[1643794551660,0.1807,2765.7,2765.1,1.3]
[1643794551861,1.52931941,2765.6,2765.1,1.3]
[1643794552060,0.1807,2765.5,2765.1,0.3]
[1643794552265,1.52931941,2765.4,2765.1,0.3]
[1643794552664,1.52931941,2765.3,2765.1,0.3]
[1643794552863,1.52931941,2765.6,2765.0,5.28869412]
[1643794553065,1.71001941,2765.5,2765.0,5.28869412]
[1643794553422,1.52931941,2765.4,2765.0,5.28869412]
[1643794553721,1.52931941,2765.3,2765.0,5.28869412]
[1643794553927,1.52931941,2765.2,2765.0,5.28869412]
[1643794554228,0.1807,2765.7,2765.1,1.3]
[1643794554424,1.52930894,2765.6,2765.2,0.90392]
[1643794554922,2.62797426,2766.1,2765.2,0.3]
[1643794555130,2.62797426,2766.1,2765.5,0.80732798]
[1643794555131,1.52912683,2766.0,2765.5,0.80732798]
[1643794555422,1.52912683,2766.0,2765.1,1.6]
[1643794555423,0.1807,2765.9,2765.1,1.6]
[1643794555621,1.52912683,2766.0,2765.2,0.90384]
[1643794555622,1.52912683,2765.8,2765.2,0.90384]
[1643794555824,1.52912683,2765.7,2765.3,0.3]
[1643794556024,1.52912683,2765.6,2765.5,1.8076057]
[1643794556227,1.52912683,2765.6,2765.5,2.4076057]
[1643794556427,1.52912683,2765.6,2765.5,3.26149401]
[1643794556821,1.52912683,2765.6,2765.5,5.16532401]
[1643794557022,1.52912683,2766.0,2765.5,3.3114357]
[1643794557267,1.52912683,2766.0,2765.6,1.8076381]
[1643794558868,1.83101428,2765.9,2765.6,1.8076381]
[1643794559067,1.52912683,2765.8,2765.6,1.8076381]
[1643794559266,1.52912683,2765.7,2765.6,1.8076381]
[1643794559666,1.52912683,2766.1,2765.6,1.8076381]
[1643794559866,3.41252305,2766.0,2765.6,1.8076381]
[1643794560066,1.52912683,2765.9,2765.6,1.8076381]
[1643794560666,1.52912683,2766.1,2765.6,1.8076381]
[1643794560920,1.52912683,2766.0,2765.6,1.8076381]
[1643794561119,1.52912683,2765.9,2765.6,1.8076381]
[1643794561319,1.52912683,2765.8,2765.6,1.8076381]
[1643794561522,1.52912683,2765.7,2765.6,1.8076381]
[1643794561722,1.52912683,2765.7,2765.6,2.8076381]
[1643794561920,1.52912683,2766.1,2765.6,2.8076381]
[1643794562122,1.52912683,2766.1,2765.9,0.39434869]
[1643794562325,1.52912683,2766.1,2765.6,2.8076381]
[1643794562832,1.52912683,2766.1,2765.6,3.1076381]
[1643794563626,1.52912683,2766.1,2765.6,1.8076381]
[1643794564028,0.86767753,2766.2,2765.6,1.8076381]
[1643794564029,1.52912683,2766.0,2765.6,1.8076381]
[1643794564228,1.52912683,2765.9,2765.6,1.8076381]
[1643794564429,0.68697753,2766.2,2765.6,1.8076381]
[1643794564430,1.52912683,2765.8,2765.6,1.8076381]
[1643794564659,1.84759955,2766.1,2765.6,1.8076381]
[1643794564660,1.52912683,2765.7,2765.6,2.8076381]
[1643794565260,1.52912683,2766.1,2765.6,2.8076381]
[1643794565663,1.52912683,2766.1,2765.9,0.32095044]
[1643794565863,1.52912683,2766.1,2765.6,2.8076381]
[1643794566062,2.02895122,2766.3,2765.6,2.8076381]
[1643794566063,1.52912683,2766.0,2765.6,2.8076381]
[1643794566268,1.52912683,2765.9,2765.6,2.8076381]
[1643794566466,1.52912683,2765.8,2765.6,2.8076381]
[1643794566667,0.1807,2766.3,2765.7,0.90375]
[1643794566873,1.52899913,2766.2,2765.8,2.1616604]
[1643794567170,3.68787426,2766.6,2765.8,0.6]
[1643794567171,1.52899913,2766.1,2765.8,0.6]
[1643794567369,0.1807,2766.7,2765.8,1.6]
[1643794567568,0.68697753,2766.8,2766.0,0.79651994]
[1643794567569,1.90665179,2766.6,2766.0,0.79651994]
[1643794567769,1.90665179,2766.6,2766.0,1.09651994]
[1643794567770,1.52886954,2766.5,2766.0,1.09651994]
[1643794567973,1.52886954,2766.5,2766.1,0.90362]
[1643794568170,1.52886954,2766.5,2766.1,1.8072226]
[1643794568415,1.52886954,2766.5,2766.1,2.8072226]
[1643794568617,1.52886954,2766.5,2766.2,0.3]
[1643794569217,1.52886954,2766.5,2766.3,0.90357]
[1643794569420,1.52886954,2766.4,2766.3,1.8071331]
[1643794569622,1.52886954,2766.9,2766.3,1.8071331]
[1643794569820,1.52886954,2766.8,2766.3,3.1071331]
[1643794570020,1.52886954,2766.7,2766.3,3.1071331]
[1643794570218,1.52886954,2766.6,2766.4,0.3]
[1643794570418,1.52886954,2766.5,2766.4,0.3]
[1643794570626,1.52886954,2766.5,2766.3,1.90357]
[1643794570627,1.52886954,2766.9,2766.3,2.20357]
[1643794571020,1.52886954,2766.9,2766.5,0.40129141]
[1643794571221,1.52886954,2766.9,2766.5,1.70129141]
[1643794571424,1.52886954,2766.8,2766.6,0.90344]
[1643794571621,0.43435171,2767.1,2766.6,0.90344]
[1643794571821,1.52862024,2767.0,2766.7,0.80054452]
[1643794572284,0.1807,2767.4,2766.8,0.90331]
[1643794572484,1.52839721,2767.3,2766.9,2.0]
[1643794572683,3.58277426,2767.7,2766.9,0.3]
[1643794572684,1.52839721,2767.2,2766.9,0.3]
[1643794572978,3.9311647,2767.7,2767.3,0.85987072]
[1643794573183,3.9311647,2767.7,2767.3,1.76311622]
[1643794573184,1.52836145,2767.6,2767.3,1.76311622]
[1643794573379,1.52836145,2767.6,2767.3,2.36311622]
[1643794573677,1.52836145,2767.6,2767.3,3.36311622]
[1643794573878,1.52836145,2767.5,2767.3,3.36311622]
[1643794574078,0.1806,2768.0,2767.3,3.36311622]
[1643794574277,1.52831604,2767.9,2767.3,3.36311622]
[1643794574482,1.52831604,2767.8,2767.3,3.36311622]
[1643794574680,1.52831604,2767.7,2767.3,3.36311622]
[1643794575579,1.52831604,2767.7,2767.3,2.5032455]
[1643794576217,0.1806,2768.2,2767.3,2.5032455]
[1643794576421,1.52835766,2768.1,2767.3,2.5032455]
[1643794576618,0.1806,2768.0,2767.3,3.38167101]
[1643794576819,1.52835766,2767.9,2767.3,3.38167101]
[1643794577020,0.1806,2767.8,2767.3,3.38167101]
[1643794577221,1.52835766,2767.7,2767.3,3.38167101]
[1643794577621,0.1806,2768.2,2767.3,3.38167101]
[1643794577822,0.31971249,2767.9,2767.3,3.71240523]
[1643794578021,1.52834054,2767.8,2767.3,3.38167101]
[1643794578821,1.52834054,2767.8,2767.3,2.5032455]
[1643794579023,1.52834054,2767.8,2767.3,1.2032455]
[1643794579221,1.52834054,2767.8,2767.3,2.5032455]
[1643794579423,1.52834054,2767.8,2767.3,2.82150469]
[1643794579661,1.52834054,2767.8,2767.3,1.2032455]
[1643794580065,1.87514209,2767.7,2767.3,1.2032455]
[1643794580463,1.85727717,2767.8,2767.3,1.2032455]
[1643794580663,1.85631755,2767.8,2767.3,1.57968214]
[1643794580863,1.85924528,2767.8,2767.3,1.2032455]
[1643794581069,1.52844803,2767.7,2767.3,1.2032455]
[1643794581268,1.93932411,2767.6,2767.3,1.2032455]
[1643794581465,1.52844803,2767.5,2767.3,1.2032455]
[1643794581666,2.15679047,2767.8,2767.3,1.2032455]
[1643794581964,1.52848015,2767.7,2767.3,1.62358454]
[1643794582369,1.52848015,2767.7,2767.2,2.58205799]
[1643794582569,1.86072889,2767.6,2767.2,2.58205799]
[1643794582769,1.52848015,2767.5,2767.2,3.00649377]
[1643794583169,1.83394227,2767.4,2767.2,1.79968807]
[1643794583416,1.54065379,2767.7,2767.2,1.79968807]
[1643794583417,2.02576907,2767.6,2767.2,1.79968807]
[1643794583624,0.01217364,2767.7,2766.3,4.7511]
[1643794583625,1.70924348,2767.5,2766.3,4.7511]
[1643794583818,3.54005181,2767.4,2766.4,1.0]
[1643794584015,1.52864348,2767.3,2766.4,1.0]
[1643794584215,0.4061614,2767.1,2766.5,1.34855077]
[1643794584415,0.4061614,2767.1,2766.5,1.01214042]
[1643794584416,1.98487261,2767.0,2766.5,1.01214042]
[1643794584815,1.98487261,2767.0,2766.7,1.8069828]
[1643794585015,1.98044251,2767.0,2766.7,1.8069828]
[1643794585817,0.4061614,2767.1,2766.7,1.8069828]
[1643794586016,0.4061614,2767.1,2766.8,0.9034827]
[1643794586916,0.1807,2767.4,2766.8,0.9034827]
[1643794587165,2.5785151,2767.7,2766.8,0.9034827]
[1643794587166,1.52867304,2767.3,2766.8,0.9034827]
[1643794587370,3.38964864,2767.2,2766.8,0.9034827]
[1643794587573,0.1806,2767.6,2766.8,0.9034827]
[1643794587770,1.52864874,2767.5,2766.8,0.9034827]
[1643794587973,2.15656532,2767.4,2766.8,0.9034827]
[1643794588172,0.37260976,2767.0,2766.8,0.9034827]
[1643794588571,0.1806,2767.6,2766.8,0.9034827]
[1643794588777,1.52862847,2767.5,2766.8,0.9034827]
[1643794588973,1.83717044,2767.4,2766.8,0.9034827]
[1643794589176,0.1806,2767.6,2766.9,0.6]
[1643794589177,1.52862847,2767.3,2766.9,0.6]
[1643794589375,0.1806,2767.6,2766.9,0.6]
[1643794589574,1.52850157,2767.5,2766.9,0.6]
[1643794589773,1.52850157,2767.5,2766.9,1.0111096]
[1643794590177,1.52850157,2767.5,2767.0,0.66945916]
[1643794590577,1.52850157,2767.5,2767.0,3.37937866]
[1643794590773,1.52850157,2767.5,2767.1,0.3]
[1643794592420,3.34530393,2767.6,2767.1,0.3]
[1643794592620,1.52850157,2767.5,2767.1,0.3]
[1643794592820,1.52850157,2767.4,2767.1,1.3]
[1643794593121,1.84643916,2767.6,2767.1,1.3]
[1643794593419,1.52846621,2767.5,2767.1,1.3]
[1643794593620,1.52846621,2767.4,2767.1,1.3]
[1643794593821,1.52846621,2767.3,2767.1,1.3]
[1643794594027,0.43644805,2767.7,2767.1,0.3]
[1643794594220,1.52847371,2767.6,2767.1,0.3]
[1643794594423,3.36991886,2767.6,2767.1,0.3]
[1643794594668,1.52847371,2767.5,2767.1,0.3]
[1643794594867,1.52847371,2767.4,2767.1,0.3]
[1643794595067,1.8477001,2767.6,2767.1,0.3]
[1643794595068,1.52847371,2767.3,2767.1,0.3]
[1643794595270,1.81613136,2767.6,2767.1,0.3]
[1643794595271,1.83517089,2767.6,2767.1,0.3]
[1643794595474,1.52849677,2767.5,2767.1,0.3]
[1643794596074,1.52849677,2767.4,2767.1,0.3]
[1643794596274,1.52849677,2767.3,2767.1,0.3]
[1643794596475,1.52849677,2767.2,2767.1,0.3]
[1643794596975,1.52849677,2767.5,2767.1,0.3]
[1643794597176,1.52849677,2767.4,2767.1,0.3]
[1643794597377,1.52849677,2767.3,2767.1,0.3]
[1643794597578,1.96224961,2767.6,2767.1,0.3]
[1643794597579,1.52849677,2767.2,2767.1,0.3]
[1643794597777,1.52849677,2767.5,2767.1,0.3]
[1643794598177,1.52849677,2767.4,2767.1,0.3]
[1643794598415,1.52849677,2767.3,2767.1,0.3]
[1643794598627,1.52849677,2767.5,2767.1,0.3]
[1643794598820,1.52849677,2767.4,2767.1,0.3]
[1643794599018,1.52849677,2767.5,2767.1,0.3]
[1643794599219,1.52849677,2767.4,2767.1,0.3]
[1643794599428,1.52849677,2767.5,2767.1,0.3]
[1643794599624,1.52849677,2767.4,2767.1,0.3]
[1643794599824,0.43644805,2767.7,2767.1,0.3]
[1643794599825,1.52849677,2767.3,2767.1,0.3]
[1643794600022,1.52849677,2767.2,2767.1,0.3]
[1643794600422,1.52849677,2767.5,2767.1,0.3]
[1643794601022,1.83122911,2767.4,2767.0,3.0099195]
[1643794601222,1.52849677,2767.5,2767.1,0.3]
[1643794601422,1.81714495,2767.4,2767.1,0.3]
[1643794601623,1.52849677,2767.3,2767.0,2.7099195]
[1643794601822,1.89820694,2767.2,2767.0,2.7099195]
[1643794602028,1.52849677,2767.1,2767.0,2.7099195]
[1643794602265,1.52849677,2767.1,2767.0,1.806613]
[1643794602464,1.52849677,2767.4,2767.0,0.17612312]
[1643794602668,1.86697247,2767.3,2767.0,0.17612312]
[1643794602865,1.52849677,2767.2,2767.0,0.17612312]
[1643794603266,1.52849677,2767.1,2767.0,0.17612312]
[1643794603666,1.52849677,2767.4,2767.0,0.17612312]
[1643794603867,2.17926078,2767.5,2767.0,0.17612312]
[1643794603868,1.52849677,2767.3,2767.0,0.17612312]
[1643794604065,1.52849677,2767.2,2767.0,1.98301012]
[1643794604266,1.52849677,2767.1,2767.0,1.98301012]
[1643794604671,1.52849677,2767.4,2767.0,2.58301012]
[1643794604868,1.52849677,2767.3,2767.2,0.44821354]
[1643794605067,1.52849677,2767.6,2767.1,0.3]
[1643794605265,1.52849677,2767.6,2767.1,1.2032954]
[1643794606311,1.52849677,2767.6,2767.2,1.12989058]
[1643794606513,1.52849677,2767.6,2767.2,1.42989058]
[1643794606710,2.65192235,2767.7,2767.2,1.42989058]
[1643794606912,2.1976068,2767.8,2767.2,1.42989058]
[1643794606913,1.52849677,2767.6,2767.2,1.42989058]
[1643794607114,1.52849677,2767.5,2767.2,1.42989058]
[1643794607322,0.1806,2767.9,2767.2,4.64347073]
[1643794607515,2.44618774,2768.2,2767.1,1.2032954]
[1643794607516,1.5281903,2767.8,2767.1,1.63318598]
[1643794607718,1.5281903,2767.7,2767.1,1.63318598]
[1643794608018,1.5281903,2767.6,2767.5,0.74398422]
[1643794608218,1.5281903,2767.6,2767.5,1.04398422]
[1643794608417,0.41690085,2767.9,2767.5,0.3]
[1643794608418,1.5281903,2767.8,2767.5,0.3]
[1643794608820,1.5281903,2767.8,2767.4,0.36297401]
[1643794609220,1.5281903,2767.8,2767.4,0.66297401]
[1643794609420,1.5281903,2767.8,2767.5,0.75670332]
[1643794609673,1.5281903,2767.8,2767.6,2.219367]
[1643794609882,0.1806,2768.4,2767.7,2.32488888]
[1643794610073,1.52793239,2768.3,2767.7,2.62488888]
[1643794610271,1.52793239,2768.6,2767.7,3.62488888]
[1643794610471,1.52793239,2768.5,2767.7,3.62488888]
[1643794610671,0.68697753,2768.7,2768.4,0.86834758]
[1643794610872,0.0030485,2768.9,2768.4,0.86834758]
[1643794610873,0.0030485,2768.9,2768.4,1.77127088]
[1643794611071,0.0030485,2768.9,2768.4,2.66747088]
[1643794611274,0.0030485,2768.9,2768.4,3.66747088]
[1643794611471,1.53089231,2768.9,2768.4,3.37127088]
[1643794611670,1.52784381,2768.8,2768.4,3.37127088]
[1643794611884,0.0030485,2768.9,2768.4,3.37127088]
[1643794611885,1.52784381,2768.7,2768.4,3.37127088]
[1643794612070,1.52784381,2768.6,2768.4,3.37127088]
[1643794612273,1.52784381,2768.5,2768.4,3.37127088]
[1643794612479,1.53089231,2768.9,2768.4,3.37127088]
[1643794612874,1.52784381,2768.8,2768.4,3.37127088]
[1643794613078,1.52784381,2768.7,2768.4,3.37127088]
[1643794613274,1.52784381,2768.6,2768.4,3.37127088]
[1643794613515,1.52784381,2768.5,2768.4,3.81812442]
[1643794614216,1.53089231,2768.9,2768.4,3.81812442]
[1643794614418,1.52784381,2768.8,2768.4,3.81812442]
[1643794614619,1.52784381,2768.7,2768.4,3.81812442]
[1643794614918,1.52784381,2768.6,2768.4,3.81812442]
[1643794615125,0.0030485,2768.9,2768.6,0.90273]
[1643794615319,0.0030485,2768.9,2768.7,1.5026834]
[1643794615721,1.53064252,2768.9,2768.7,1.5026834]
[1643794615923,1.52759402,2768.8,2768.7,0.6]
[1643794616121,0.0030485,2768.9,2768.7,0.6]
[1643794616322,1.52759402,2768.8,2768.7,1.0]
[1643794616522,0.0030485,2768.9,2768.7,1.90271]
[1643794616721,1.52759402,2768.8,2768.7,1.90271]
[1643794616922,0.0030485,2768.9,2768.7,1.90271]
[1643794617175,1.53064252,2768.9,2768.7,1.90271]
[1643794617371,1.52759402,2768.8,2768.7,1.90271]
[1643794617571,0.0030485,2768.9,2768.7,2.50271]
[1643794618374,0.0030485,2768.9,2768.7,0.90271]
[1643794619172,0.0030485,2768.9,2768.7,2.70812]
[1643794619673,0.0030485,2768.9,2768.8,1.0]
[1643794620079,1.2289,2769.8,2768.9,0.90265]
[1643794620282,0.1805,2769.4,2769.0,2.9521656]
[1643794620474,0.04035807,2769.4,2769.0,3.2521656]
[1643794620674,0.04035807,2769.4,2769.1,1.3]
[1643794620923,0.04035807,2769.4,2769.1,0.3]
[1643794621119,0.36857255,2769.4,2769.1,0.3]
[1643794621519,0.04035807,2769.4,2769.1,0.3]
[1643794621720,0.04035807,2769.4,2769.0,1.3]
[1643794621918,0.04035807,2769.4,2768.9,2.95324142]
[1643794622323,0.04035807,2769.4,2769.0,1.3]
[1643794622523,0.04035807,2769.4,2768.9,2.95324142]
[1643794622524,0.39139814,2769.4,2768.9,1.51388254]
[1643794622723,0.04035807,2769.4,2768.9,1.51388254]
[1643794623323,0.04035807,2769.4,2768.6,1.8055637]
[1643794623530,0.04035807,2769.4,2768.4,2.70831]
[1643794623531,0.1804,2769.3,2768.4,0.9029555]
[1643794623725,2.44471585,2769.3,2768.4,0.9029555]
[1643794623924,2.12021195,2769.2,2768.4,0.9029555]
[1643794624227,0.1804,2769.1,2768.1,6.5917781]
[1643794624425,0.40331316,2768.8,2768.3,1.21115095]
[1643794624672,0.1804,2769.2,2768.3,1.21115095]
[1643794625273,0.1804,2769.2,2768.3,1.51115095]
[1643794625674,0.1804,2769.2,2768.0,6.0722818]
[1643794625675,0.1804,2769.2,2768.0,5.1692818]
[1643794625876,0.1804,2769.2,2768.2,0.1805]
[1643794626074,0.1804,2769.2,2768.1,0.4804]
[1643794626674,0.1804,2769.2,2768.3,0.9029334]
[1643794626874,0.1804,2769.2,2768.3,0.68385967]
[1643794626875,0.43687556,2769.1,2768.3,0.68385967]
[1643794627075,0.1804,2769.0,2768.6,0.40652547]
[1643794627480,0.1804,2769.0,2768.3,0.68385967]
[1643794627881,0.1804,2769.0,2768.1,1.9862273]
[1643794628185,0.1804,2769.0,2768.2,0.79367964]
[1643794628420,0.43687556,2769.1,2768.2,0.79367964]
[1643794628421,0.61727556,2769.1,2768.2,0.79367964]
[1643794628623,0.43687556,2769.1,2768.3,0.44065106]
[1643794628821,0.43687556,2769.1,2768.3,2.48740792]
[1643794629022,0.1804,2769.3,2768.3,2.48740792]
[1643794629221,0.1804,2769.3,2768.3,3.48740792]
[1643794629420,0.1804,2769.3,2768.4,1.8056241]
[1643794629622,0.1804,2769.3,2768.4,0.9028241]
[1643794629821,0.1804,2769.3,2768.3,0.62105106]
[1643794630123,0.43188968,2769.2,2768.3,0.62105106]
[1643794630321,0.43188968,2769.2,2768.3,1.62105106]
[1643794630520,1.86637768,2769.1,2768.3,1.62105106]
[1643794630728,1.86637768,2769.1,2768.5,0.75380643]
[1643794630729,1.86336448,2769.1,2768.5,0.75380643]
[1643794630921,1.85395575,2769.1,2768.3,1.62105106]
[1643794631122,1.85395575,2769.1,2768.3,0.62105106]
[1643794631322,0.1804,2769.3,2768.3,1.62105106]
[1643794631521,0.1804,2769.3,2768.3,0.92105106]
[1643794631722,0.1804,2769.3,2768.3,1.92105106]
[1643794631920,0.1804,2769.3,2768.6,0.75667841]
[1643794632165,0.1804,2769.3,2768.6,1.05667841]
[1643794632773,0.55690004,2769.3,2768.8,0.40597775]
[1643794632974,0.1804,2769.3,2768.8,0.40597775]
[1643794633577,0.1804,2769.3,2768.8,0.70597775]
[1643794633775,0.1804,2769.3,2768.8,1.00597775]
[1643794634176,0.04035807,2769.4,2768.8,1.00597775]
[1643794635175,0.04035807,2769.4,2768.9,0.90269]
[1643794635578,0.04035807,2769.4,2769.0,0.3]
[1643794635925,1.28157811,2769.4,2768.8,0.3]
[1643794636227,1.28157811,2769.4,2768.5,0.1804]
[1643794636228,2.30549401,2769.3,2768.5,0.1804]
[1643794636422,2.48589401,2769.3,2768.5,0.1804]
[1643794637224,0.43019434,2768.9,2768.5,0.1804]
[1643794637429,1.93881856,2768.8,2768.5,0.1804]
[1643794637626,1.93881856,2768.8,2768.4,0.4804]
[1643794637824,1.93881856,2768.8,2768.3,0.1804]
[1643794638530,1.16561468,2768.9,2768.3,0.1804]
[1643794638531,0.43019434,2768.9,2768.3,0.1804]
[1643794638726,1.90902255,2768.8,2768.3,0.1804]
[1643794639799,1.90902255,2768.8,2768.1,0.55]
[1643794639800,2.88062255,2768.8,2768.1,0.1804]
[1643794640200,1.52763832,2768.7,2768.0,0.1806]
[1643794640403,0.41911198,2768.2,2768.0,0.1806]
[1643794640598,2.98201001,2768.6,2768.0,0.1806]
[1643794640801,2.98201001,2768.6,2767.8,0.1806]
[1643794641002,2.98201001,2768.6,2767.7,0.1806]
[1643794641206,1.52763832,2768.5,2767.7,0.1806]
[1643794641399,2.22278911,2768.4,2767.7,0.1806]
[1643794641599,1.52763832,2768.3,2767.7,0.1806]
[1643794641799,2.01392203,2768.2,2767.7,0.1806]
[1643794642002,2.4477484,2768.2,2767.7,1.06838958]
[1643794642207,0.43382637,2768.2,2767.7,1.06838958]
[1643794642605,2.33262982,2768.5,2767.7,1.06838958]
[1643794642807,1.52762253,2768.4,2767.7,1.06838958]
[1643794643206,0.1806,2768.6,2767.7,1.06838958]
[1643794643421,1.52759853,2768.5,2767.7,1.06838958]
[1643794643619,2.06395816,2768.4,2767.6,0.1806]
[1643794644720,0.35578506,2768.2,2767.7,0.39006901]
[1643794645320,0.35578506,2768.2,2768.0,10.0]
[1643794645521,0.35578506,2768.2,2768.0,10.3]
[1643794645719,2.06395816,2768.4,2768.0,10.3]
[1643794645923,1.21608082,2769.0,2768.0,10.3]
[1643794645924,1.52760395,2768.3,2768.0,10.3]
[1643794646124,2.14008012,2768.7,2768.0,10.3]
[1643794646329,1.52756191,2768.6,2768.0,10.3]
[1643794646624,2.16031918,2768.5,2768.0,10.3]
[1643794646923,1.52756191,2768.4,2768.0,10.3]
[1643794647186,0.1806,2768.6,2768.1,0.80895885]
[1643794647387,0.1806,2768.7,2768.1,0.80895885]
[1643794647587,2.44411118,2769.1,2768.1,0.80895885]
[1643794647588,0.1806,2768.9,2768.1,0.80895885]
[1643794647787,2.44411118,2769.1,2768.1,2.10895885]
[1643794647788,1.5273978,2768.8,2768.1,2.10895885]